fUSD/lending_fUSD_20260515
["ID","MTS","AMOUNT","RATE_DAILY","PERIOD"]
[422270791,1778776254000,-40768.0,0.00035513,30]
[422270807,1778776254000,-370.0,0.00035716,30]
[422270820,1778776254000,-40768.0,0.00036104,30]
[422270818,1778776254000,-163.0,0.00036069,11]
[422270816,1778776254000,-800.0,0.00036,2]
[422270808,1778776254000,-1907.0,0.00035716,30]
[422270814,1778776254000,-150.0,0.00035981,2]
[422270817,1778776254000,-43072.0,0.00036019,30]
[422270815,1778776254000,-1672.7364795,0.00035999,30]
[422270813,1778776254000,-152.83452376,0.00035972,120]
[422270810,1778776254000,-350.0,0.0003589,5]
[422270809,1778776254000,-40768.0,0.00035809,30]
[422270811,1778776254000,-156.8306539,0.00035938,2]
[422270812,1778776254000,-40768.0,0.00035957,30]
[422270884,1778776255000,-184.47474038,0.000372,120]
[422270883,1778776255000,-184.47474038,0.000372,120]
[422270894,1778776255000,-400.0,0.00037464,2]
[422270885,1778776255000,-184.47474038,0.000372,120]
[422270878,1778776255000,-152.0,0.00037122,7]
[422270874,1778776255000,-214.3472978,0.00037022,10]
[422270879,1778776255000,-152.0,0.00037122,7]
[422270881,1778776255000,-152.0,0.00037196,7]
[422270875,1778776255000,-6148.7605,0.00037034,2]
[422270886,1778776255000,-184.47474038,0.000372,120]
[422270882,1778776255000,-2037.22,0.000372,14]
[422270889,1778776255000,-8393.88,0.00037306,30]
[422270890,1778776255000,-512.0,0.00037315,15]
[422270888,1778776255000,-6148.7605,0.00037298,2]
[422270893,1778776255000,-6148.7605,0.00037431,2]
[422270891,1778776255000,-1260.92,0.00037338,2]
[422270892,1778776255000,-152.0,0.00037414,6]
[422270906,1778776255000,-2037.22,0.000379,14]
[422270895,1778776255000,-400.0,0.00037464,2]
[422270896,1778776255000,-371.0,0.00037464,2]
[422270897,1778776255000,-6148.7605,0.00037563,2]
[422270898,1778776255000,-236517.0,0.000376,30]
[422270900,1778776255000,-6148.7605,0.00037695,2]
[422270876,1778776255000,-922.1591,0.00037034,2]
[422270887,1778776255000,-152.0,0.00037271,7]
[422270877,1778776255000,-761.0,0.00037055,2]
[422270858,1778776255000,-224.0,0.00036716,30]
[422270870,1778776255000,-250.0,0.00037012,7]
[422270855,1778776255000,-2698.0,0.00036576,30]
[422270849,1778776255000,-1580.50280252,0.000364,2]
[422270854,1778776255000,-200.0,0.00036576,30]
[422270852,1778776255000,-155.0,0.00036562,30]
[422270850,1778776255000,-1500.0,0.000364,21]
[422270851,1778776255000,-500.0,0.00036535,35]
[422270853,1778776255000,-258.0,0.0003657,30]
[422270856,1778776255000,-3629.0,0.00036576,30]
[422270857,1778776255000,-631.0,0.00036716,30]
[422270868,1778776255000,-1050.40637228,0.00036986,60]
[422270866,1778776255000,-22171.51971509,0.00036922,2]
[422270871,1778776255000,-25000.0,0.00037013,10]
[422270865,1778776255000,-500.0,0.00036893,5]
[422270901,1778776255000,-150.0,0.0003778,2]
[422270863,1778776255000,-1260.92,0.00036838,2]
[422270864,1778776255000,-350.0,0.00036849,5]
[422270859,1778776255000,-159.0,0.00036716,30]
[422270862,1778776255000,-512.0,0.00036753,14]
[422270860,1778776255000,-370.0,0.00036716,30]
[422270861,1778776255000,-1907.0,0.00036716,30]
[422270869,1778776255000,-2492.31,0.00037,30]
[422270880,1778776255000,-6148.7605,0.00037166,2]
[422270872,1778776255000,-25000.0,0.00037022,10]
[422270873,1778776255000,-1008.23631473,0.00037022,10]
[422270867,1778776255000,-272.31,0.0003693,120]
[422270904,1778776255000,-6148.7605,0.00037827,2]
[422270944,1778776255000,-159.87183211,0.000389,30]
[422270899,1778776255000,-503.03240194,0.00037631,41]
[422270931,1778776255000,-555.94,0.00038539,7]
[422270935,1778776255000,-648.59,0.00038733,7]
[422270936,1778776255000,-6148.7605,0.00038753,2]
[422270934,1778776255000,-1500.0,0.000387,7]
[422270937,1778776255000,-236517.0,0.000388,30]
[422270945,1778776255000,-159.87183211,0.000389,30]
[422270941,1778776255000,-3704.54176561,0.000389,30]
[422270939,1778776255000,-922.1593,0.00038886,2]
[422270943,1778776255000,-3704.54176559,0.000389,30]
[422270942,1778776255000,-3704.54176559,0.000389,30]
[422270957,1778776255000,-953.44673316,0.0003909,2]
[422270930,1778776255000,-648.59,0.00038539,7]
[422270938,1778776255000,-6148.7611,0.00038886,2]
[422270947,1778776255000,-942.28737643,0.000389,30]
[422270946,1778776255000,-159.87183211,0.000389,30]
[422270948,1778776255000,-942.28737642,0.000389,30]
[422270949,1778776255000,-307.92,0.00039,120]
[422270950,1778776255000,-1485.93,0.00039,30]
[422270902,1778776255000,-1206.67,0.000378,30]
[422270955,1778776255000,-1132.64973647,0.0003909,2]
[422270954,1778776255000,-106013.97146286,0.0003909,2]
[422270953,1778776255000,-1148.63,0.00039069,120]
[422270952,1778776255000,-157.0,0.0003902,3]
[422270956,1778776255000,-189.0,0.00030576,30]
[422270940,1778776255000,-2000.0,0.000389,7]
[422270923,1778776255000,-500.0,0.00038356,120]
[422270951,1778776255000,-512.0,0.00039,17]
[422270924,1778776255000,-200.0,0.00038356,2]
[422270927,1778776255000,-6789.0,0.0003838,2]
[422270903,1778776255000,-350.0,0.00037808,5]
[422270905,1778776255000,-512.0,0.00037877,16]
[422270910,1778776255000,-6148.7605,0.0003796,2]
[422270919,1778776255000,-500.0,0.00038356,120]
[422270911,1778776255000,-922.1591,0.0003796,2]
[422270908,1778776255000,-926.0,0.00037958,2]
[422270918,1778776255000,-500.0,0.00038356,2]
[422270909,1778776255000,-3542.0,0.00037958,2]
[422270912,1778776255000,-6148.7605,0.00038092,2]
[422270920,1778776255000,-500.0,0.00038356,120]
[422270913,1778776255000,-1558.1,0.00038125,30]
[422270907,1778776255000,-1223.0,0.00037958,2]
[422270915,1778776255000,-6148.7605,0.00038224,2]
[422270914,1778776255000,-500.0,0.00038192,2]
[422270929,1778776255000,-6148.7605,0.00038489,2]
[422270925,1778776255000,-282.0,0.00038356,2]
[422270926,1778776255000,-6148.7605,0.00038357,2]
[422270933,1778776255000,-151.07549812,0.00038697,7]
[422270928,1778776255000,-512.0,0.00038438,16]
[422270921,1778776255000,-500.0,0.00038356,120]
[422270922,1778776255000,-500.0,0.00038356,120]
[422270916,1778776255000,-500.0,0.00038356,2]
[422270917,1778776255000,-500.0,0.00038356,2]
[422270932,1778776255000,-6148.7605,0.00038621,2]
[422270978,1778776256000,-170.81488267,0.00039519,7]
[422270979,1778776256000,-165.29075871,0.00039519,7]
[422270980,1778776256000,-176.38002728,0.00039519,7]
[422270981,1778776256000,-154.15623007,0.00039519,7]
[422270982,1778776256000,-182.8604322,0.00039519,7]
[422270983,1778776256000,-156.48930804,0.00039519,7]
[422270984,1778776256000,-172.37759301,0.00039519,7]
[422270985,1778776256000,-182.94823066,0.00039519,7]
[422270990,1778776256000,-411.6145322,0.00039519,7]
[422270994,1778776256000,-174.52716957,0.00039564,7]
[422270991,1778776256000,-156.69735705,0.00039519,7]
[422270992,1778776256000,-512.0,0.00039562,17]
[422270993,1778776256000,-197.66876106,0.00039564,7]
[422270995,1778776256000,-293.31275715,0.00039564,7]
[422271001,1778776256000,-189.07035293,0.00039564,7]
[422271000,1778776256000,-170.66474665,0.00039564,7]
[422271002,1778776256000,-417.84450092,0.00039564,7]
[422270987,1778776256000,-156.72084195,0.00039519,7]
[422270989,1778776256000,-190.56402933,0.00039519,2]
[422270986,1778776256000,-167.31452653,0.00039519,5]
[422270964,1778776256000,-3151.81,0.000391,2]
[422270977,1778776256000,-300.75345136,0.00039519,7]
[422270959,1778776256000,-167.15,0.00025192,7]
[422270958,1778776256000,-0.00329668,0.0003909,2]
[422270960,1778776256000,-483148.4004552,0.0003909,2]
[422270961,1778776256000,-729.541633,0.0003909,2]
[422270963,1778776256000,-2654.15,0.000391,2]
[422270966,1778776256000,-1161.19,0.000391,2]
[422270973,1778776256000,-1500.0,0.000395,7]
[422270968,1778776256000,-1000.0,0.00039156,21]
[422270988,1778776256000,-218.91448247,0.00039519,7]
[422270965,1778776256000,-3483.58,0.000391,2]
[422270962,1778776256000,-189.9755229,0.00039092,120]
[422270974,1778776256000,-500.0,0.00039503,60]
[422270972,1778776256000,-1148.58,0.00039393,120]
[422270971,1778776256000,-1000.0,0.00039353,120]
[422270970,1778776256000,-373.944,0.00039229,120]
[422270969,1778776256000,-8393.88,0.00039229,30]
[422270975,1778776256000,-154.93835047,0.00039519,7]
[422270976,1778776256000,-182.13417351,0.00039519,7]
[422270967,1778776256000,-1206.67,0.000391,30]
[422270997,1778776256000,-176.37191935,0.00039564,7]
[422270998,1778776256000,-204.76982589,0.00039564,7]
[422270999,1778776256000,-160.64251671,0.00039564,7]
[422271026,1778776256000,-170.06256312,0.00039582,7]
[422271027,1778776256000,-179.30670427,0.00039582,7]
[422271028,1778776256000,-185.23175104,0.00039582,7]
[422271032,1778776256000,-172.0,0.00039871,90]
[422271029,1778776256000,-150.0,0.00039669,2]
[422271030,1778776256000,-5800.0,0.00039687,14]
[422271031,1778776256000,-1148.58,0.00039718,120]
[422271033,1778776256000,-163.0,0.000399,120]
[422271035,1778776256000,-659.8232204,0.00039913,2]
[422271034,1778776256000,-252.31,0.0003991,30]
[422271037,1778776256000,-700.0,0.0003997,11]
[422271042,1778776256000,-14671.46713851,0.0004,5]
[422271040,1778776256000,-208.3309892,0.0004,10]
[422271039,1778776256000,-208.3309892,0.0004,3]
[422271041,1778776256000,-2100.40785441,0.0004,2]
[422271038,1778776256000,-236517.0,0.0004,30]
[422271043,1778776256000,-10426.74680874,0.0004,120]
[422271044,1778776256000,-500.0,0.0004,120]
[422270996,1778776256000,-161.04846664,0.00039564,7]
[422271024,1778776256000,-155.91472092,0.00039582,7]
[422271025,1778776256000,-151.13364329,0.00039582,7]
[422271036,1778776256000,-989.73483059,0.00039913,2]
[422271023,1778776256000,-164.78834023,0.00039582,7]
[422271003,1778776256000,-195.57806153,0.00039564,7]
[422271021,1778776256000,-169.11185594,0.00039582,7]
[422271004,1778776256000,-264.77687665,0.00039564,7]
[422271005,1778776256000,-455.2272932,0.00039564,7]
[422271009,1778776256000,-150.93990988,0.00039564,7]
[422271006,1778776256000,-203.23249579,0.00039564,7]
[422271010,1778776256000,-171.337974,0.00039564,7]
[422271008,1778776256000,-472.5897077,0.00039564,7]
[422271012,1778776256000,-177.84865464,0.00039564,7]
[422271007,1778776256000,-150.57681611,0.00039564,7]
[422271013,1778776256000,-194.31628634,0.00039565,7]
[422271014,1778776256000,-207.53163282,0.00039565,7]
[422271016,1778776256000,-155.93354568,0.00039565,7]
[422271017,1778776256000,-222.00310851,0.00039565,7]
[422271015,1778776256000,-188.21955264,0.00039565,7]
[422271018,1778776256000,-162.21710301,0.00039582,7]
[422271019,1778776256000,-167.95253902,0.00039582,7]
[422271011,1778776256000,-197.54506009,0.00039564,7]
[422271022,1778776256000,-150.92434842,0.00039582,7]
[422271020,1778776256000,-163.59165835,0.00039582,7]
[422271087,1778776257000,-500.0,0.00040147,7]
[422271079,1778776257000,-500.0,0.00040147,7]
[422271090,1778776257000,-500.0,0.00040147,7]
[422271089,1778776257000,-500.0,0.00040147,7]
[422271076,1778776257000,-500.0,0.00040147,7]
[422271080,1778776257000,-500.0,0.00040147,7]
[422271078,1778776257000,-500.0,0.00040147,7]
[422271073,1778776257000,-500.0,0.00040147,7]
[422271082,1778776257000,-500.0,0.00040147,7]
[422271067,1778776257000,-500.0,0.00040147,7]
[422271088,1778776257000,-500.0,0.00040147,7]
[422271085,1778776257000,-500.0,0.00040147,7]
[422271102,1778776257000,-500.0,0.00040147,7]
[422271086,1778776257000,-500.0,0.00040147,7]
[422271084,1778776257000,-500.0,0.00040147,7]
[422271083,1778776257000,-500.0,0.00040147,7]
[422271092,1778776257000,-500.0,0.00040147,7]
[422271097,1778776257000,-500.0,0.00040147,7]
[422271091,1778776257000,-500.0,0.00040147,7]
[422271094,1778776257000,-500.0,0.00040147,7]
[422271093,1778776257000,-500.0,0.00040147,7]
[422271098,1778776257000,-500.0,0.00040147,7]
[422271100,1778776257000,-500.0,0.00040147,7]
[422271096,1778776257000,-500.0,0.00040147,7]
[422271075,1778776257000,-500.0,0.00040147,7]
[422271081,1778776257000,-500.0,0.00040147,7]
[422271074,1778776257000,-500.0,0.00040147,7]
[422271051,1778776257000,-500.0,0.0004014,30]
[422271071,1778776257000,-500.0,0.00040147,7]
[422271101,1778776257000,-500.0,0.00040147,7]
[422271045,1778776257000,-214.95940296,0.0004,10]
[422271049,1778776257000,-512.0,0.00040123,18]
[422271046,1778776257000,-152.0,0.0004004,7]
[422271047,1778776257000,-1148.58,0.00040043,120]
[422271048,1778776257000,-302.15099625,0.00040083,7]
[422271050,1778776257000,-500.0,0.0004014,30]
[422271052,1778776257000,-500.0,0.0004014,30]
[422271053,1778776257000,-500.0,0.00040147,7]
[422271054,1778776257000,-500.0,0.00040147,7]
[422271056,1778776257000,-500.0,0.00040147,7]
[422271065,1778776257000,-500.0,0.00040147,7]
[422271072,1778776257000,-500.0,0.00040147,7]
[422271055,1778776257000,-500.0,0.00040147,7]
[422271057,1778776257000,-500.0,0.00040147,7]
[422271064,1778776257000,-530.98,0.00040147,7]
[422271059,1778776257000,-500.0,0.00040147,7]
[422271060,1778776257000,-500.0,0.00040147,7]
[422271061,1778776257000,-500.0,0.00040147,7]
[422271062,1778776257000,-500.0,0.00040147,7]
[422271063,1778776257000,-512.58,0.00040147,7]
[422271066,1778776257000,-500.0,0.00040147,7]
[422271070,1778776257000,-500.0,0.00040147,7]
[422271068,1778776257000,-500.0,0.00040147,7]
[422271069,1778776257000,-500.0,0.00040147,7]
[422271077,1778776257000,-500.0,0.00040147,7]
[422271058,1778776257000,-500.0,0.00040147,7]
[422271099,1778776257000,-500.0,0.00040147,7]
[422271095,1778776257000,-500.0,0.00040147,7]
[422271106,1778776257000,-500.0,0.00040147,7]
[422271132,1778776257000,-500.0,0.00040147,7]
[422271133,1778776257000,-500.0,0.00040147,7]
[422271138,1778776257000,-500.0,0.00040147,7]
[422271139,1778776257000,-500.0,0.00040147,7]
[422271137,1778776257000,-500.0,0.00040147,7]
[422271141,1778776257000,-500.0,0.00040147,7]
[422271144,1778776257000,-500.0,0.00040147,7]
[422271140,1778776257000,-500.0,0.00040147,7]
[422271142,1778776257000,-500.0,0.00040147,7]
[422271143,1778776257000,-500.0,0.00040147,7]
[422271145,1778776257000,-500.0,0.00040147,7]
[422271146,1778776257000,-500.0,0.00040147,7]
[422271136,1778776257000,-500.0,0.00040147,7]
[422271147,1778776257000,-500.0,0.00040147,7]
[422271156,1778776257000,-500.0,0.00040275,2]
[422271153,1778776257000,-175.41101549,0.00040275,2]
[422271149,1778776257000,-500.0,0.00040147,7]
[422271151,1778776257000,-152.26,0.00040152,120]
[422271157,1778776257000,-553.49084739,0.00040275,2]
[422271155,1778776257000,-500.0,0.00040275,2]
[422271154,1778776257000,-500.0,0.00040275,2]
[422271158,1778776257000,-150.0,0.00040275,2]
[422271150,1778776257000,-438.57,0.00040147,7]
[422271159,1778776257000,-150.0,0.00040275,2]
[422271160,1778776257000,-150.0,0.00040275,2]
[422271103,1778776257000,-500.0,0.00040147,7]
[422271148,1778776257000,-245.6,0.00040147,7]
[422271135,1778776257000,-500.0,0.00040147,7]
[422271152,1778776257000,-150.0,0.00040275,2]
[422271134,1778776257000,-500.0,0.00040147,7]
[422271131,1778776257000,-500.0,0.00040147,7]
[422271105,1778776257000,-500.0,0.00040147,7]
[422271104,1778776257000,-500.0,0.00040147,7]
[422271161,1778776257000,-298.59343092,0.00040275,2]
[422271107,1778776257000,-500.0,0.00040147,7]
[422271108,1778776257000,-500.0,0.00040147,7]
[422271110,1778776257000,-500.0,0.00040147,7]
[422271113,1778776257000,-500.0,0.00040147,7]
[422271112,1778776257000,-500.0,0.00040147,7]
[422271111,1778776257000,-500.0,0.00040147,7]
[422271109,1778776257000,-500.0,0.00040147,7]
[422271116,1778776257000,-500.0,0.00040147,7]
[422271117,1778776257000,-500.0,0.00040147,7]
[422271114,1778776257000,-500.0,0.00040147,7]
[422271115,1778776257000,-500.0,0.00040147,7]
[422271118,1778776257000,-500.0,0.00040147,7]
[422271128,1778776257000,-500.0,0.00040147,7]
[422271126,1778776257000,-500.0,0.00040147,7]
[422271127,1778776257000,-500.0,0.00040147,7]
[422271125,1778776257000,-500.0,0.00040147,7]
[422271129,1778776257000,-500.0,0.00040147,7]
[422271123,1778776257000,-500.0,0.00040147,7]
[422271122,1778776257000,-500.0,0.00040147,7]
[422271120,1778776257000,-500.0,0.00040147,7]
[422271124,1778776257000,-500.0,0.00040147,7]
[422271130,1778776257000,-500.0,0.00040147,7]
[422271121,1778776257000,-500.0,0.00040147,7]
[422271119,1778776257000,-500.0,0.00040147,7]
[422271198,1778776258000,-500.0,0.00040275,2]
[422271189,1778776258000,-150.0,0.00040275,2]
[422271194,1778776258000,-224.93537889,0.00040275,2]
[422271193,1778776258000,-213.52501256,0.00040275,2]
[422271191,1778776258000,-273.30264021,0.00040275,2]
[422271207,1778776258000,-150.0,0.00040275,2]
[422271197,1778776258000,-150.0,0.00040275,2]
[422271196,1778776258000,-150.0,0.00040275,2]
[422271201,1778776258000,-268.87677318,0.00040275,2]
[422271195,1778776258000,-150.0,0.00040275,2]
[422271190,1778776258000,-150.0,0.00040275,2]
[422271205,1778776258000,-150.0,0.00040275,2]
[422271199,1778776258000,-150.0,0.00040275,2]
[422271202,1778776258000,-1692.0,0.00040275,2]
[422271204,1778776258000,-1692.0,0.00040275,2]
[422271203,1778776258000,-1692.0,0.00040275,2]
[422271206,1778776258000,-1692.0,0.00040275,2]
[422271208,1778776258000,-1692.0,0.00040275,2]
[422271209,1778776258000,-200.0,0.00040275,2]
[422271210,1778776258000,-1692.0,0.00040275,2]
[422271215,1778776258000,-1692.0,0.00040275,2]
[422271192,1778776258000,-150.0,0.00040275,2]
[422271214,1778776258000,-1692.0,0.00040275,2]
[422271200,1778776258000,-513.31108128,0.00040275,2]
[422271186,1778776258000,-241.29142233,0.00040275,2]
[422271176,1778776258000,-500.0,0.00040275,2]
[422271188,1778776258000,-150.0,0.00040275,2]
[422271216,1778776258000,-1692.0,0.00040275,2]
[422271164,1778776258000,-590.8172916,0.00040275,2]
[422271163,1778776258000,-500.0,0.00040275,2]
[422271167,1778776258000,-200.0,0.00040275,2]
[422271162,1778776258000,-210.60844671,0.00040275,2]
[422271169,1778776258000,-500.0,0.00040275,2]
[422271165,1778776258000,-150.0,0.00040275,2]
[422271166,1778776258000,-150.0,0.00040275,2]
[422271168,1778776258000,-500.0,0.00040275,2]
[422271170,1778776258000,-503.52293091,0.00040275,2]
[422271171,1778776258000,-500.0,0.00040275,2]
[422271172,1778776258000,-500.0,0.00040275,2]
[422271173,1778776258000,-500.0,0.00040275,2]
[422271175,1778776258000,-500.0,0.00040275,2]
[422271174,1778776258000,-500.0,0.00040275,2]
[422271182,1778776258000,-500.0,0.00040275,2]
[422271183,1778776258000,-530.77702258,0.00040275,2]
[422271180,1778776258000,-500.0,0.00040275,2]
[422271178,1778776258000,-500.0,0.00040275,2]
[422271179,1778776258000,-500.0,0.00040275,2]
[422271177,1778776258000,-500.0,0.00040275,2]
[422271181,1778776258000,-500.0,0.00040275,2]
[422271184,1778776258000,-500.0,0.00040275,2]
[422271187,1778776258000,-150.0,0.00040275,2]
[422271211,1778776258000,-1692.0,0.00040275,2]
[422271185,1778776258000,-500.0,0.00040275,2]
[422271218,1778776258000,-1692.0,0.00040275,2]
[422271245,1778776258000,-1027.0,0.00040275,2]
[422271255,1778776258000,-284.63445457,0.00040275,2]
[422271250,1778776258000,-1027.0,0.00040275,2]
[422271244,1778776258000,-1027.0,0.00040275,2]
[422271246,1778776258000,-1027.0,0.00040275,2]
[422271248,1778776258000,-1027.0,0.00040275,2]
[422271252,1778776258000,-1027.0,0.00040275,2]
[422271249,1778776258000,-1027.0,0.00040275,2]
[422271251,1778776258000,-1027.0,0.00040275,2]
[422271254,1778776258000,-1033.54383866,0.00040275,2]
[422271253,1778776258000,-1027.0,0.00040275,2]
[422271257,1778776258000,-1570.72,0.0004029,60]
[422271258,1778776258000,-4851.25,0.0004029,60]
[422271259,1778776258000,-1500.0,0.000403,7]
[422271260,1778776258000,-1148.58,0.00040367,120]
[422271256,1778776258000,-1759.68,0.0004029,60]
[422271263,1778776258000,-1124.0615707,0.000404,120]
[422271262,1778776258000,-651.99991156,0.000404,120]
[422271261,1778776258000,-812461.52470239,0.000404,120]
[422271266,1778776258000,-175.8020267,0.0002,2]
[422271264,1778776258000,-175.8020267,0.0002,2]
[422271265,1778776258000,-175.8020267,0.0002,2]
[422271212,1778776258000,-1692.0,0.00040275,2]
[422271240,1778776258000,-1027.0,0.00040275,2]
[422271238,1778776258000,-1027.0,0.00040275,2]
[422271247,1778776258000,-1027.0,0.00040275,2]
[422271239,1778776258000,-1027.0,0.00040275,2]
[422271213,1778776258000,-1692.0,0.00040275,2]
[422271219,1778776258000,-1692.0,0.00040275,2]
[422271217,1778776258000,-1692.0,0.00040275,2]
[422271221,1778776258000,-1692.0,0.00040275,2]
[422271237,1778776258000,-1027.0,0.00040275,2]
[422271222,1778776258000,-1692.0,0.00040275,2]
[422271223,1778776258000,-1692.0,0.00040275,2]
[422271224,1778776258000,-1692.0,0.00040275,2]
[422271227,1778776258000,-1692.0,0.00040275,2]
[422271225,1778776258000,-1692.0,0.00040275,2]
[422271228,1778776258000,-1705.36501334,0.00040275,2]
[422271229,1778776258000,-1027.0,0.00040275,2]
[422271220,1778776258000,-1692.0,0.00040275,2]
[422271230,1778776258000,-1027.0,0.00040275,2]
[422271226,1778776258000,-1692.0,0.00040275,2]
[422271241,1778776258000,-1027.0,0.00040275,2]
[422271243,1778776258000,-1027.0,0.00040275,2]
[422271233,1778776258000,-1027.0,0.00040275,2]
[422271234,1778776258000,-1027.0,0.00040275,2]
[422271236,1778776258000,-1027.0,0.00040275,2]
[422271267,1778776258000,-175.8020267,0.0002,2]
[422271231,1778776258000,-1027.0,0.00040275,2]
[422271242,1778776258000,-1027.0,0.00040275,2]
[422271232,1778776258000,-150.0,0.00040275,2]
[422271235,1778776258000,-150.0,0.00040275,2]
[422271272,1778776259000,-1354.0,0.00025889,2]
[422271269,1778776259000,-137.69832692,0.0002,2]
[422271270,1778776259000,-765.57396186,0.00027397,10]
[422271268,1778776259000,-38.10369979,0.0002,2]
[422271273,1778776259000,-214.95940296,0.000262,30]
[422271277,1778776259000,-252.39680989,0.00027397,10]
[422271275,1778776259000,-768.0,0.00027397,10]
[422271278,1778776259000,-167.15,0.00028384,7]
[422271276,1778776259000,-3457.57922825,0.00027397,10]
[422271279,1778776259000,-23.26094263,0.00028889,2]
[422271274,1778776259000,-2353.0,0.00027397,10]
[422271288,1778776366000,-205.23965754,8.581e-05,2]
[422271287,1778776366000,-186.76034246,8.581e-05,2]
[422271289,1778776416000,150.0,0.00019205,120]
[422271293,1778777374000,-250.0,6.461e-05,2]
[422271291,1778777374000,-250.0,6.168e-05,2]
[422271292,1778777374000,-250.0,6.406e-05,2]
[422271290,1778777374000,-163.26,5.874e-05,2]
[422271295,1778777374000,-230.0,6.59e-05,2]
[422271297,1778777374000,-173.86,7.372e-05,2]
[422271296,1778777374000,-163.26,7.285e-05,2]
[422271298,1778777374000,-1055.662604,8.176e-05,2]
[422271294,1778777374000,-150.0,6.525e-05,2]
[422271300,1778777409000,152.0,0.00019472,120]
[422271310,1778777431000,-35606.02476895,8.176e-05,2]
[422271311,1778777431000,-300.0,8.176e-05,2]
[422271313,1778777431000,-1200.0,8.176e-05,2]
[422271312,1778777431000,-300.0,8.176e-05,2]
[422271316,1778777431000,-150.0,8.177e-05,2]
[422271314,1778777431000,-250.0,8.177e-05,2]
[422271317,1778777431000,-311.960047,8.178e-05,2]
[422271319,1778777431000,-164.2233,8.259e-05,2]
[422271320,1778777431000,-152.0,8.472e-05,2]
[422271318,1778777431000,-250.0,8.2e-05,2]
[422271321,1778777431000,-152.0,8.472e-05,2]
[422271315,1778777431000,-4384.55454673,8.177e-05,2]
[422271322,1778777431000,-163.26,8.696e-05,2]
[422271384,1778777432000,-227.23,0.00012329,2]
[422271380,1778777432000,-186.15,0.00011741,2]
[422271369,1778777432000,-173.86,0.00011058,2]
[422271367,1778777432000,-150.0,0.00010959,2]
[422271376,1778777432000,-163.26,0.00011518,2]
[422271372,1778777432000,-166.66,0.00011058,2]
[422271365,1778777432000,-823.0,0.00010882,2]
[422271378,1778777432000,-2000.0,0.00011553,2]
[422271363,1778777432000,-250.0,0.00010803,2]
[422271361,1778777432000,-166.66,0.00010745,2]
[422271419,1778777432000,-500.0,0.00013212,2]
[422271374,1778777432000,-150.0,0.00011233,2]
[422271382,1778777432000,-1152.0,0.0001197,2]
[422271392,1778777432000,-601.17344496,0.00013113,2]
[422271394,1778777432000,-2308.89009,0.00013113,2]
[422271396,1778777432000,-8557.70299623,0.00013113,2]
[422271390,1778777432000,-5264.0971,0.00013113,2]
[422271388,1778777432000,-2500.0,0.00013112,2]
[422271398,1778777432000,-1613.0,0.00013168,2]
[422271402,1778777432000,-500.0,0.00013212,2]
[422271400,1778777432000,-537.93328249,0.00013212,2]
[422271359,1778777432000,-166.66,0.00010431,2]
[422271404,1778777432000,-433.58820763,0.00013212,2]
[422271407,1778777432000,-500.0,0.00013212,2]
[422271406,1778777432000,-500.0,0.00013212,2]
[422271409,1778777432000,-500.0,0.00013212,2]
[422271411,1778777432000,-500.0,0.00013212,2]
[422271386,1778777432000,-2000.0,0.00012708,2]
[422271349,1778777432000,-200.0,9.978e-05,2]
[422271353,1778777432000,-166.66,0.00010118,2]